fUSD/lending_fUSD_20241024
["ID","MTS","AMOUNT","RATE_DAILY","PERIOD"]
[340772646,1729791039929,-1514.169996,0.00014,2]
[340772662,1729791042753,-68100.0,0.00014,2]
[340772663,1729791042765,-2370.66186,0.00014,2]
[340772664,1729791042972,-0.32173709,0.00014,2]
[340772665,1729791042985,-652.89846779,0.00014,2]
[340772673,1729791045691,-8921.62036563,0.00014,2]
[340772674,1729791045704,-262.32200505,0.00014,2]
[340772675,1729791045716,-48506.41917312,0.00014,2]
[340772676,1729791045751,-66602.06076622,0.00014,2]
[340772677,1729791045812,-66702.40437154,0.00014,2]
[340772678,1729791045935,-1264.7968584,0.00014,2]
[340772679,1729791045947,-8680.79949257,0.00014,2]
[340772680,1729791046148,-66.48961738,0.00014,2]
[340772681,1729791046160,-641.337702,0.00014,2]
[340772686,1729791143849,250.0,0.0001,2]
[340772690,1729791256686,-300.0,0.00012,2]
[340772700,1729791529930,-150.0,0.00013887,2]
[340772701,1729791529954,-1209.41346657,0.00013899,2]
[340772702,1729791529978,-155.87595396,0.000139,2]
[340772703,1729791530002,-2308.70942795,0.000139,2]
[340772704,1729791530612,169.16770408,0.000139,2]
[340772705,1729791569556,178.7488535,0.000139,2]
[340772707,1729791657534,1328.08459394,0.000139,2]
[340772713,1729791899703,420.31,0.0001209,2]
[340772714,1729792043129,-150.43,0.00013651,2]
[340772715,1729792043148,-176.87,0.00013782,2]
[340772716,1729792043168,-300.0,0.00013868,2]
[340772717,1729792043189,-250.0,0.00013868,2]
[340772718,1729792043210,-1088.47211994,0.000139,2]
[340772719,1729792043230,-150.0,0.00013925,2]
[340772720,1729792043252,-250.0,0.00013943,2]
[340772721,1729792043274,-500.0,0.00013973,2]
[340772722,1729792043295,-464.4672199,0.00013973,2]
[340772723,1729792043317,-137.84663197,0.0001399,3]
[340772726,1729792173087,-250.0,0.00013846,2]
[340772727,1729792173106,-879.63,0.00013858,2]
[340772728,1729792173126,-929.0290722,0.0001386,2]
[340772729,1729792173147,-500.0,0.00013989,2]
[340772730,1729792173168,-500.0,0.00013989,2]
[340772731,1729792173192,-143.49107407,0.00013989,2]
[340772748,1729792231906,-1944.40115768,0.00013858,2]
[340772758,1729792231999,-4078.69884232,0.00013858,2]
[340772759,1729792232009,-1096.444754,0.000139,2]
[340772760,1729792232018,-394.07,0.0001398,3]
[340772761,1729792232027,-441.32855426,0.00013989,2]
[340772762,1729792232036,-46108.59624281,0.0001399,3]
[340772763,1729792232095,-18404.02422153,0.0001399,3]
[340772764,1729792232107,-664.96084412,0.0001399,3]
[340772765,1729792232118,-5905.61785603,0.0001399,3]
[340772766,1729792232130,-580.87891067,0.0001399,3]
[340772767,1729792232212,-71121.46184484,0.0001399,3]
[340772768,1729792232221,-213059.575886,0.0001399,3]
[340772769,1729792232230,-375.00361355,0.00013999,2]
[340772770,1729792232239,-150.0,0.00013999,2]
[340772771,1729792232249,-69535.42301876,0.00014,2]
[340772772,1729792232259,-391812.99724939,0.00014,2]
[340772773,1729792232271,-689.30241408,0.00014,2]
[340772794,1729792238152,-510.4542608,0.00014,2]
[340772795,1729792238163,-977.77687236,0.00014,2]
[340772796,1729792238175,-16459.0048027,0.00014,2]
[340772797,1729792238513,-8210.04134093,0.00014,2]
[340772798,1729792238528,-529.44,0.00014,2]
[340772802,1729792240056,-780.70424734,0.00014,2]
[340772803,1729792240068,-2399.999999,0.00014,2]
[340772804,1729792240079,-1108.2439701,0.00014,2]
[340772805,1729792240231,-14746.24999068,0.00014,2]
[340772806,1729792240325,-2287.92,0.00014,2]
[340772807,1729792240337,-1143.320003,0.00014,2]
[340772808,1729792240348,-5721.0,0.00014,2]
[340772809,1729792240359,-2777.300002,0.00014,2]
[340772810,1729792240420,-2713.70480544,0.00014,2]
[340772811,1729792240433,-142848.97982861,0.00014,2]
[340772812,1729792240466,-2812.30405209,0.00014,2]
[340772813,1729792240539,-925.7720724,0.00014,2]
[340772861,1729792244245,-11017.7906506,0.00014,2]
[340772862,1729792244269,-929.96123073,0.00014,2]
[340772863,1729792244442,-67668.89572243,0.00014,2]
[340772864,1729792244454,-12486.73033182,0.00014,2]
[340772865,1729792244468,-5363.54348783,0.00014,2]
[340772866,1729792244570,-541.92539657,0.00014,2]
[340772867,1729792244584,-697.68583,0.00014,2]
[340772868,1729792244595,-720.02828238,0.00014,2]
[340772869,1729792244607,-502.49912,0.00014,2]
[340772870,1729792244620,-1308.00000413,0.00014,2]
[340772871,1729792244632,-858.6849167,0.00014,2]
[340772883,1729792245902,-62084.24849883,0.00014,2]
[340772884,1729792245914,-28042.35394889,0.00014,2]
[340772885,1729792245928,-5762.43495938,0.00014,2]
[340772886,1729792246021,-100646.01785308,0.00014,2]
[340772887,1729792246033,-271.385145,0.00014,2]
[340772888,1729792246189,-308.1,0.00014,2]
[340772889,1729792246200,-11062.11061774,0.00014,2]
[340772927,1729792430297,399.29,0.00011741,2]
[340773576,1729792570455,300.0,0.000134,4]
[340773577,1729792572615,700.0,0.000135,4]
[340773733,1729792834208,16880.4,0.0001,2]
[340773734,1729792834233,17225.6223747,0.0001,2]
[340773740,1729792937080,468.17,0.00010909,2]
[340773741,1729792965441,250.0,0.0001,2]
[340773758,1729793221705,300.0,0.000134,4]
[340773759,1729793223870,600.0,0.000135,4]
[340773760,1729793237965,-150.0,0.00011989,2]
[340773761,1729793237987,-300.0,0.00012,2]
[340773762,1729793238008,-250.0,0.00012379,2]
[340773763,1729793238034,-250.9389568,0.00012391,2]
[340773764,1729793238057,-266.44,0.00012427,2]
[340773765,1729793238080,-15448.40723012,0.00012475,2]
[340773766,1729793238103,-300.0,0.00012491,2]
[340773767,1729793238125,-23900.0,0.00012492,2]
[340773768,1729793238146,-156.36,0.00012546,2]
[340773769,1729793238168,-200.0,0.00012546,2]
[340773770,1729793238189,-964.53,0.00012575,2]
[340773771,1729793238210,-2751.0,0.00012575,2]
[340773772,1729793238231,-336.55,0.00012629,2]
[340773773,1729793238253,-2866.48,0.00012629,2]
[340773774,1729793238275,-2369.29,0.00012629,2]
[340773775,1729793238298,-250.0,0.00012743,2]
[340773776,1729793238321,-250.0,0.00012786,2]
[340773777,1729793238343,-439.81,0.00012823,2]
[340773778,1729793238365,-174.53,0.00012866,2]
[340773779,1729793238394,-554.19687873,0.00012866,2]
[340773780,1729793238416,-150.00598913,0.000129,2]
[340773781,1729793238440,-900.0,0.00012998,2]
[340773782,1729793238461,-266.44,0.00013049,2]
[340773783,1729793238483,-800.0,0.00013055,2]
[340773784,1729793238505,-150.0,0.00013128,2]
[340773785,1729793238527,-664.15,0.00013129,2]
[340773786,1729793238550,-468.17,0.00013173,2]
[340773787,1729793238572,-157.4,0.00013531,2]
[340773788,1729793238595,-900.0,0.000136,4]
[340773789,1729793238617,-266.44,0.0001367,2]
[340773790,1729793238638,-3291.93,0.00013699,2]
[340773791,1729793238660,-1200.0,0.000137,5]
[340773792,1729793238681,-249.0,0.00013706,2]
[340773793,1729793238702,-200.0,0.00013762,2]
[340773794,1729793238725,-1500.0,0.000138,5]
[340773795,1729793238748,-3096.76306601,0.0001389,2]
[340773796,1729793238770,-177.34935106,0.000139,2]
[340773797,1729793238793,-196.61684147,0.000139,2]
[340773798,1729793238814,-912.39051492,0.000139,2]
[340773799,1729793238835,-339.42489103,0.000139,2]
[340773800,1729793238857,-300.0,0.000139,5]
[340773801,1729793238879,-409.50542711,0.00013958,2]
[340773802,1729793238900,-500.0,0.00013973,2]
[340773803,1729793238922,-816.93250539,0.00013989,2]
[340773804,1729793238944,-578.67263749,0.00013989,2]
[340773805,1729793238972,-193331.160766,0.0001399,3]
[340773806,1729793238997,-2575.85817267,0.0001399,3]
[340773807,1729793239026,-2785619.48093945,0.00014,2]
[340773808,1729793369145,-150.0,0.00013879,2]
[340773809,1729793369164,-3697.40676377,0.0001388,2]
[340773811,1729793394698,-52862.44708862,0.0001388,2]
[340773812,1729793394718,-226.28326068,0.000139,2]
[340773813,1729793394738,-608.26034328,0.000139,2]
[340773814,1729793394760,-493.19173644,0.0001399,3]
[340773815,1729793394782,-127078.276185,0.0001399,3]
[340773816,1729793394804,-4172072.74701868,0.00014,2]
[340773817,1729793394825,-2000.0,0.00014,2]
[340773818,1729793394845,-200.0,0.00014,2]
[340773819,1729793394865,-2000.0,0.00014,2]
[340773820,1729793394885,-350.0,0.00014,2]
[340773821,1729793394905,-200.0,0.00014114,2]
[340773822,1729793394926,-2000.0,0.0001414,2]
[340773823,1729793394946,-200.0,0.0001414,2]
[340773824,1729793394966,-174.52,0.0001415,2]
[340773825,1729793394986,-2000.0,0.00014281,2]
[340773826,1729793395006,-200.0,0.00014281,2]
[340773827,1729793395026,-266.44,0.00014291,2]
[340773828,1729793395047,-2000.0,0.00014424,2]
[340773829,1729793395068,-200.0,0.00014424,2]
[340773830,1729793395090,-10357.49883161,0.000145,3]
[340773831,1729793395110,-547.55691924,0.000145,2]
[340773832,1729793395132,-800.0,0.00014687,2]
[340773833,1729793395152,-300.0,0.000149,5]
[340773834,1729793395172,-266.44,0.00014913,2]
[340773835,1729793395192,-500.0,0.00014973,2]
[340773836,1729793395213,-405.91592361,0.00015,2]
[340773837,1729793395234,-4121440.70120448,0.00015,2]
[340773846,1729793432110,-150.0,0.00015003,2]
[340773847,1729793432120,-150.41,0.00015068,2]
[340773848,1729793432131,-45.2221,0.00015342,2]
[340773849,1729793432361,-452.80214917,0.00015342,2]
[340773850,1729793432370,-164.14,0.00015342,2]
[340773851,1729793432379,-157.25,0.00015342,2]
[340773852,1729793432388,-157.21,0.00015342,2]
[340773853,1729793432397,-158.45,0.00015342,2]
[340773854,1729793432406,-165.6,0.00015342,2]
[340773855,1729793432415,-468.17,0.00015437,2]
[340773856,1729793432424,-200.0,0.00015683,2]
[340773857,1729793432433,-8511.69212628,0.000159,2]
[340773858,1729793432443,-156.0,0.00016,2]
[340773859,1729793432452,-400.0,0.00016,2]
[340773860,1729793432461,-5503.64,0.00016116,2]
[340773861,1729793432470,-800.0,0.00016319,2]
[340773862,1729793432479,-1000.0,0.00016342,2]
[340773863,1729793432488,-155.23,0.00016712,2]
[340773864,1729793432497,-200.0,0.00017251,2]
[340773865,1729793432506,-468.17,0.00017701,2]
[340773866,1729793432515,-800.0,0.00017951,2]
[340773867,1729793432524,-439.81,0.00017953,2]
[340773868,1729793432534,-450.0,0.00018,2]
[340773869,1729793432543,-180.0,0.00018082,2]
[340773870,1729793432552,-495.42116087,0.00018346,2]
[340773871,1729793432561,-200.0,0.00018819,2]
[340773872,1729793432570,-800.0,0.00019583,2]
[340773873,1729793432579,-468.17,0.00019965,2]
[340773874,1729793432589,-38170.51323793,0.0002,2]
[340773875,1729793432598,-151.0,0.0002,2]
[340773876,1729793432607,-500.0,0.0002,2]
[340773877,1729793432616,-158.19,0.00021918,2]
[340773878,1729793432625,-550.0,0.00022,2]
[340773879,1729793432634,-468.17,0.00022229,2]
[340773880,1729793432643,-600.0,0.00024,2]
[340773881,1729793432653,-468.17,0.00024492,2]
[340773882,1729793432662,-870.75762694,0.00024598,2]
[340773883,1729793432671,-900.44,0.00024658,2]
[340773884,1729793432681,-2890.15780655,0.00025,2]
[340773885,1729793432690,-3937.93449361,0.00025,2]
[340773886,1729793432699,-650.0,0.00026,2]
[340773887,1729793432708,-468.17,0.00026756,2]
[340773888,1729793432717,-150.38,0.00027397,2]
[340773889,1729793432726,-2000.0,0.00027671,2]
[340773890,1729793432735,-700.0,0.00028,2]
[340773891,1729793432744,-468.17,0.0002902,2]
[340773892,1729793432753,-150.38,0.00029354,2]
[340773893,1729793432762,-500.0,0.00029589,2]
[340773894,1729793432772,-156.18,0.00029653,2]
[340773895,1729793432781,-21534.84056884,0.0003,2]
[340773896,1729793432790,-21534.84056884,0.0003,2]
[340773897,1729793432799,-205.63486443,0.0003,2]
[340773898,1729793432808,-750.0,0.0003,2]
[340773899,1729793432817,-275.70860354,0.0003,2]
[340773900,1729793432826,-468.17,0.00031284,2]
[340773901,1729793432835,-150.38,0.00031311,2]
[340773902,1729793432844,-800.0,0.00032,2]
[340773903,1729793432853,-500.0,0.00032876,2]
[340773904,1729793432863,-161.91963321,0.00032877,2]
[340773905,1729793432872,-150.38,0.00033268,2]
[340773906,1729793432881,-468.17,0.00033548,2]
[340773907,1729793432891,-850.0,0.00034,2]
[340773908,1729793432900,-204.14840064,0.00034849,120]
[340773909,1729793432909,-170.7302981,0.00034921,40]
[340773910,1729793432919,-150.38,0.00035225,2]
[340773911,1729793432928,-9080.607,0.00035421,42]
[340773912,1729793432938,-1000.0,0.00035616,2]
[340773913,1729793432947,-468.17,0.00035812,2]
[340773914,1729793432956,-900.0,0.00036,2]
[340773915,1729793432965,-156.18,0.00036809,2]
[340773916,1729793432975,-150.38,0.00037182,2]
[340773917,1729793432984,-950.0,0.00038,2]
[340773918,1729793432993,-468.17,0.00038076,2]
[340773919,1729793433002,-3201.96504207,0.0003818,2]
[340773920,1729793433012,-1500.0,0.00038356,2]
[340773921,1729793433022,-150.38,0.00039139,2]
[340773922,1729793433031,-1000.0,0.0004,2]
[340773923,1729793433041,-10231.0,0.0004,2]
[340773924,1729793433050,-468.17,0.0004034,2]
[340773925,1729793433060,-2000.0,0.00041095,2]
[340773926,1729793433070,-1000.0,0.00041096,120]
[340773927,1729793433079,-150.38,0.00041096,2]
[340773928,1729793433089,-181.16422658,0.000411,2]
[340773929,1729793433099,-11524.0,0.000414,3]
[340773930,1729793433111,-1000.0,0.00041507,120]
[340773931,1729793433120,-1000.0,0.00041918,120]
[340773932,1729793433130,-1468.77603591,0.00042,2]
[340773933,1729793433139,-1050.0,0.00042,2]
[340773934,1729793433148,-1312.92966552,0.0004201,2]
[340773935,1729793433158,-216.56282863,0.00042216,14]
[340773936,1729793433167,-1000.0,0.00042329,120]
[340773937,1729793433176,-468.17,0.00042604,2]
[340773938,1729793433185,-1548.43377642,0.0004274,120]
[340773939,1729793433194,-811.700719,0.000429,40]
[340773940,1729793433205,-11524.0,0.000429,5]
[340773941,1729793433214,-9075.10183328,0.00043216,2]
[340773942,1729793433223,-22859.56521915,0.00043216,2]
[340773943,1729793433232,-1381.92253918,0.00043835,2]
[340773944,1729793433241,-156.18,0.00043964,2]
[340773945,1729793433251,-1100.0,0.00044,2]
[340773946,1729793433260,-468.17,0.00044867,2]
[340773947,1729793433270,-530.94727348,0.00044999,31]
[340773948,1729793433279,-43223.30230181,0.00045,2]
[340773949,1729793433364,-303.4456781,0.00045,2]
[340773950,1729793433376,-295.6043219,0.00045,2]
[340773951,1729793433387,-62981.51846881,0.00045,2]
[340773952,1729793438132,-8227.95262168,0.00045,2]
[340773953,1729793438144,-2966.07400033,0.00045,2]
[340773954,1729793438157,-610.82407843,0.00045,2]
[340773955,1729793438174,-284.81021248,0.00045,2]
[340773956,1729793438195,-4389.17592157,0.00045,2]
[340773957,1729793438289,-5146.02669942,0.00045,2]
[340773958,1729793438300,-3199.00243035,0.00045,2]
[340773959,1729793438312,-8714.25382459,0.00045,2]
[340773960,1729793438479,-161912.00944053,0.00045,2]
[340773961,1729793438488,-172.03973626,0.000459,28]
[340773962,1729793438498,-1150.0,0.00046,2]
[340773963,1729793438507,-468.17,0.00047131,2]
[340773964,1729793438516,-26858.76,0.00047542,2]
[340773965,1729793438527,-1200.0,0.00048,2]
[340773966,1729793438536,-172.03973626,0.00048614,28]
[340773967,1729793438545,-468.17,0.00049395,2]
[340773968,1729793438554,-1250.0,0.0005,2]
[340773969,1729793438564,-156.18,0.0005112,2]
[340773970,1729793438573,-468.17,0.00051659,2]
[340773971,1729793438583,-302.0,0.00052,120]
[340773972,1729793438592,-1300.0,0.00052,2]
[340773973,1729793438603,-936.0,0.00053634,120]
[340773974,1729793438613,-560.322,0.00053634,120]
[340773975,1729793438622,-3361.0,0.00053634,120]
[340773976,1729793438631,-1911.0,0.00053634,120]
[340773977,1729793438640,-810.0,0.00053634,2]
[340773978,1729793438650,-468.17,0.00053923,2]
[340773979,1729793438659,-1350.0,0.00054,2]
[340773980,1729793438668,-9080.607,0.00054066,101]
[340773982,1729793438677,-5892.0,0.00054134,120]
[340773984,1729793438686,-152.808,0.00054134,120]
[340773986,1729793438695,-1152.0,0.00054134,120]
[340773987,1729793438704,-13549.0,0.00054134,120]
[340773988,1729793438713,-1085.0,0.00054134,120]
[340773989,1729793438722,-5000.0,0.00054794,120]
[340773990,1729793438732,-5000.0,0.00054794,120]
[340773991,1729793438742,-5000.0,0.00054794,120]
[340773992,1729793438751,-5000.0,0.00054794,120]
[340773993,1729793438761,-5000.0,0.00054794,120]
[340773994,1729793438771,-5000.0,0.00054794,120]
[340773995,1729793438781,-5000.0,0.00054794,120]
[340773996,1729793438790,-5000.0,0.00054794,120]
[340773997,1729793438799,-5000.0,0.00054794,120]
[340773998,1729793438809,-5000.0,0.00054794,120]
[340773999,1729793438818,-5000.0,0.00054794,120]
[340774000,1729793438827,-5000.0,0.00054794,120]
[340774001,1729793438837,-5000.0,0.00054794,120]
[340774002,1729793438847,-5000.0,0.00054794,120]
[340774003,1729793438856,-5000.0,0.00054794,120]
[340774004,1729793438866,-5000.0,0.00054794,120]
[340774005,1729793438876,-4999.45658362,0.00054794,120]
[340774006,1729793438885,-780.0,0.000553,12]
[340774007,1729793438895,-1400.0,0.00056,2]
[340774008,1729793438904,-10000.0,0.00056021,60]
[340774009,1729793438914,-3361.0,0.00056634,120]
[340774010,1729793438924,-1910.0,0.00056634,120]
[340774011,1729793438933,-810.0,0.00056634,2]
[340774012,1729793438942,-5892.0,0.00057134,120]
[340774013,1729793438952,-150.0,0.00057134,120]
[340774014,1729793438962,-178.33,0.00057134,120]
[340774015,1729793438971,-4525.691,0.00057134,120]
[340774016,1729793438981,-1083.0,0.00057134,120]
[340774017,1729793438991,-5000.0,0.00058,120]
[340774018,1729793439000,-152.0,0.00058266,3]
[340774019,1729793439010,-156.18,0.00058276,120]
[340774020,1729793439019,-250.0,0.000593,120]
[340774021,1729793439029,-297.0,0.000593,120]
[340774022,1729793439038,-150.222,0.00059324,120]
[340774023,1729793439048,-150.0,0.00059324,120]
[340774024,1729793439057,-150.0,0.00059324,2]
[340774025,1729793439067,-151.323,0.00059324,120]
[340774026,1729793439076,-168.843,0.00059324,120]
[340774027,1729793439085,-1246.0,0.00059324,120]
[340774028,1729793439094,-450.0,0.00059324,120]
[340774029,1729793439104,-813.0,0.00059324,120]
[340774030,1729793439117,-560.0,0.00059324,120]
[340774031,1729793439126,-682.514,0.00059634,120]
[340774032,1729793439136,-332.362,0.00059634,2]
[340774033,1729793439146,-1178.0,0.0006,3]
[340774034,1729793439155,-200.0,0.0006,120]
[340774035,1729793439164,-267509.08104477,0.0006,2]
[340774036,1729793439191,-244826.98087399,0.0006,2]
[340774037,1729793439205,-108444.34356955,0.0006,2]
[340774038,1729793439214,-82986.18054951,0.0006,120]
[340774039,1729793439223,-328.25564734,0.0006,120]
[340774040,1729793439234,-35085.63,0.0006,120]
[340774041,1729793439243,-2284.71764703,0.0006,7]
[340774042,1729793439252,-236.383274,0.0006,120]
[340774043,1729793439262,-258.641393,0.0006,120]
[340774044,1729793439272,-151.0,0.0006,120]
[340774045,1729793439282,-151.0,0.0006,120]
[340774046,1729793439291,-151.0,0.0006,120]
[340774047,1729793439300,-151.0,0.0006,120]
[340774048,1729793439309,-158.18,0.0006,120]
[340774049,1729793439319,-419.039824,0.0006,110]
[340774050,1729793439328,-419.039824,0.0006,110]
[340774051,1729793439337,-5889.0,0.00060134,120]
[340774052,1729793439346,-150.0,0.00060134,120]
[340774053,1729793439356,-2115.02853117,0.00060274,2]
[340774054,1729793439369,-2884.97146883,0.00060274,2]
[340774055,1729793439379,-150.0,0.00060274,60]
[340774056,1729793439388,-150.0,0.00060274,60]
[340774057,1729793439398,-150.0,0.00060274,60]
[340774058,1729793439407,-459.46,0.00060274,60]
[340774059,1729793439416,-150.0,0.00060274,60]
[340774060,1729793439426,-165.2,0.00060274,60]
[340774061,1729793439435,-430.25,0.00060274,60]
[340774062,1729793439445,-430.25,0.00060274,60]
[340774063,1729793439454,-151.6,0.00060274,60]
[340774064,1729793439463,-430.25,0.00060274,60]
[340774065,1729793439473,-430.25,0.00060274,60]
[340774066,1729793439482,-430.25,0.00060274,60]
[340774067,1729793439491,-775.7,0.00060274,60]
[340774068,1729793439500,-2031.68,0.00061375,2]
[340774069,1729793439510,-2031.68,0.00061392,2]
[340774070,1729793439519,-2031.68,0.00061408,2]
[340774071,1729793439534,-2031.68,0.00061424,2]
[340774072,1729793439543,-2031.68,0.0006144,2]
[340774073,1729793439551,-2031.68,0.00061456,2]
[340774074,1729793439561,-2031.68,0.00061472,2]
[340774075,1729793439570,-2031.68,0.00061489,2]
[340774076,1729793439579,-2031.68,0.00061505,2]
[340774077,1729793439588,-2031.68,0.00061521,2]
[340774078,1729793439598,-2031.68,0.00061537,2]
[340774079,1729793439607,-2031.68,0.00061553,2]
[340774080,1729793439616,-2031.68,0.00061569,2]
[340774081,1729793439625,-2031.68,0.00061586,2]
[340774082,1729793439634,-1500.0,0.00061599,60]
[340774083,1729793439643,-2031.68,0.00061602,2]
[340774084,1729793439652,-2031.68,0.00061618,2]
[340774085,1729793439661,-2031.68,0.00061634,2]
[340774086,1729793439670,-2031.68,0.0006165,2]
[340774087,1729793439679,-2031.68,0.00061666,2]
[340774088,1729793439688,-2031.68,0.00061683,2]
[340774089,1729793439697,-623.0,0.000618,117]
[340774090,1729793439707,-1915.78789944,0.000618,117]
[340774091,1729793439717,-300.0,0.000619,22]
[340774092,1729793439726,-9871.4785808,0.00062,5]
[340774093,1729793439735,-154.27627707,0.00062,2]
[340774094,1729793439745,-150.0,0.00062324,120]
[340774095,1729793439754,-150.0,0.00062324,2]
[340774096,1729793439763,-150.0,0.00062324,120]
[340774097,1729793439776,-1245.0,0.00062324,120]
[340774098,1729793439786,-224.564,0.00062324,120]
[340774099,1729793439795,-813.0,0.00062324,120]
[340774100,1729793439804,-167.45,0.00062364,2]
[340774101,1729793439813,-61928.33627442,0.00062365,120]
[340774106,1729793440258,-172.03973626,0.00051329,28]
[340774107,1729793440268,-93424.35408691,0.00062365,120]
[340774108,1729793440282,-10340.9406,0.00062365,120]
[340774109,1729793440293,-389.44550813,0.00062365,120]
[340774110,1729793440305,-82746.0647237,0.00062365,120]
[340774111,1729793440315,-61608.06217202,0.00062365,120]
[340774112,1729793440326,-3440.798413,0.00062365,120]
[340774113,1729793440338,-4086.77261693,0.00062365,120]
[340774114,1729793440457,-614.5588717,0.00062365,120]
[340774115,1729793440485,-4840.48013538,0.00062365,120]
[340774116,1729793440497,-4281.55196842,0.00062365,120]
[340774117,1729793440508,-20410.21731038,0.00062365,120]
[340774118,1729793443067,250.0,0.00012546,2]
[340774120,1729793443147,-367.94529826,0.00062365,120]
[340774124,1729793443181,-1079.16121596,0.00062365,120]
[340774125,1729793443206,-1899.64764595,0.00062365,120]
[340774129,1729793443235,-2581.2614539,0.00062365,120]
[340774132,1729793443257,-1858.93673647,0.00062365,120]
[340774135,1729793443281,-83235.71141888,0.00062365,120]
[340774137,1729793443555,-11479.87404177,0.00062365,120]
[340774138,1729793443567,-4250.12510384,0.00062365,120]
[340774139,1729793443578,-151.0,0.00062365,120]
[340774140,1729793443587,-151.0,0.00062365,120]
[340774141,1729793443597,-151.0,0.00062365,120]
[340774142,1729793443607,-160.147253,0.00062365,7]
[340774143,1729793443617,-151.0,0.00062365,120]
[340774144,1729793443626,-151.0,0.00062365,120]
[340774145,1729793443638,-151.0,0.00062365,120]
[340774146,1729793443648,-158.11334,0.00062365,120]
[340774147,1729793443658,-2853.48417,0.00062365,120]
[340774148,1729793443668,-151.0,0.00062365,120]
[340774149,1729793443677,-2853.48417,0.00062365,120]
[340774150,1729793443686,-151.0,0.00062365,120]
[340774151,1729793443696,-151.0,0.00062365,120]
[340774152,1729793443706,-287.044472,0.00062365,120]
[340774153,1729793443715,-151.0,0.00062365,120]
[340774154,1729793443724,-419.039824,0.00062365,110]
[340774155,1729793443734,-419.039824,0.00062365,110]
[340774156,1729793443743,-500.0,0.00062465,120]
[340774157,1729793443752,-500.0,0.00062465,120]
[340774158,1729793443761,-500.0,0.00062465,120]
[340774159,1729793443771,-500.0,0.00062465,120]
[340774160,1729793443782,-500.0,0.00062465,120]
[340774161,1729793443791,-500.0,0.00062465,120]
[340774162,1729793443800,-318.40376456,0.00062465,120]
[340774163,1729793443809,-151.0,0.00062465,120]
[340774164,1729793443818,-297.358338,0.00062465,120]
[340774165,1729793443828,-500.0,0.00062465,120]
[340774166,1729793443837,-476.96001195,0.00062465,120]
[340774167,1729793443847,-500.0,0.00062465,120]
[340774168,1729793443856,-500.0,0.00062465,120]
[340774169,1729793443865,-500.0,0.00062465,120]
[340774170,1729793443875,-500.0,0.00062465,120]
[340774171,1729793443884,-500.0,0.00062465,120]
[340774172,1729793443894,-293.01133094,0.00062465,120]
[340774173,1729793443907,-206.98866906,0.00062465,120]
[340774174,1729793443916,-500.0,0.00062465,120]
[340774175,1729793443926,-500.0,0.00062465,120]
[340774176,1729793443936,-500.0,0.00062465,120]
[340774177,1729793443945,-52.67277158,0.00062465,120]
[340774178,1729793443959,-447.32722842,0.00062465,120]
[340774179,1729793443970,-500.0,0.00062465,120]
[340774180,1729793443979,-500.0,0.00062465,120]
[340774181,1729793443988,-500.0,0.00062465,120]
[340774182,1729793443998,-500.0,0.00062465,120]
[340774183,1729793444007,-500.0,0.00062465,120]
[340774184,1729793444017,-500.0,0.00062465,120]
[340774185,1729793444026,-500.0,0.00062465,120]
[340774186,1729793444035,-500.0,0.00062465,120]